[Event "Titled Tuesday Blitz April 11 Early 2023"]
[White "Borrmann, Laurenz"]
[Black "Orujov2008"]
[WhiteFideId "312187930"]
[WhiteElo "2312"]
[BlackElo "2325"]
[Result "1-0"]
[Round "09"]
[TimeControl "180+2"]
[Date "2023.04.11"]
[WhiteClock "0:00:08"]
[BlackClock "0:00:02"]

1. d4 {[%clk 0:02:55]}  Nf6 {[%clk 0:02:57]} 2. c4 {[%clk 0:02:56]}  e6 {[%clk 0:02:55]} 3. Nf3 {[%clk 0:02:56]}  d5 {[%clk 0:02:55]} 4. g3 {[%clk 0:02:57]}  Be7 {[%clk 0:02:55]} 5. Bg2 {[%clk 0:02:57]}  O-O {[%clk 0:02:56]} 6. O-O {[%clk 0:02:54]}  dxc4 {[%clk 0:02:55]} 7. Qc2 {[%clk 0:02:55]}  a6 {[%clk 0:02:55]} 8. Nbd2 {[%clk 0:02:52]}  b5 {[%clk 0:02:53]} 9. Ne5 {[%clk 0:02:53]}  Nd5 {[%clk 0:02:53]} 10. b3 {[%clk 0:02:46]}  cxb3 {[%clk 0:02:51]} 11. Nxb3 {[%clk 0:02:45]}  Bb7 {[%clk 0:02:47]} 12. Na5 {[%clk 0:02:11]}  Nb4 {[%clk 0:02:09]} 13. Nxb7 {[%clk 0:02:10]}  Nxc2 {[%clk 0:02:09]} 14. Nxd8 {[%clk 0:02:11]}  Nxa1 {[%clk 0:02:06]} 15. Bxa8 {[%clk 0:02:09]}  Rxd8 {[%clk 0:02:05]} 16. Bb2 {[%clk 0:01:53]}  Nc2 {[%clk 0:02:03]} 17. Rc1 {[%clk 0:01:53]}  Nxd4 {[%clk 0:01:52]} 18. Bxd4 {[%clk 0:01:51]}  Rxd4 {[%clk 0:01:44]} 19. Rxc7 {[%clk 0:01:51]}  Bf6 {[%clk 0:01:22]} 20. Nxf7 {[%clk 0:01:35]}  Rd7 {[%clk 0:01:19]} 21. Rxd7 {[%clk 0:01:25]}  Nxd7 {[%clk 0:01:20]} 22. Nd6 {[%clk 0:01:25]}  Nc5 {[%clk 0:01:01]} 23. f4 {[%clk 0:01:11]}  Be7 {[%clk 0:00:39]} 24. Nc8 {[%clk 0:01:09]}  Bd8 {[%clk 0:00:33]} 25. Bc6 {[%clk 0:00:56]}  Na4 {[%clk 0:00:30]} 26. Bb7 {[%clk 0:00:48]}  Nc5 {[%clk 0:00:25]} 27. Bc6 {[%clk 0:00:48]}  Na4 {[%clk 0:00:25]} 28. Nd6 {[%clk 0:00:46]}  Nc3 {[%clk 0:00:21]} 29. Bb7 {[%clk 0:00:45]}  a5 {[%clk 0:00:18]} 30. Ba6 {[%clk 0:00:35]}  Nxa2 {[%clk 0:00:16]} 31. Bxb5 {[%clk 0:00:34]}  Nc3 {[%clk 0:00:16]} 32. Bc4 {[%clk 0:00:34]}  a4 {[%clk 0:00:15]} 33. Bxe6+ {[%clk 0:00:21]}  Kf8 {[%clk 0:00:15]} 34. f5 {[%clk 0:00:19]}  a3 {[%clk 0:00:14]} 35. Nf7 {[%clk 0:00:14]}  a2 {[%clk 0:00:11]} 36. Bxa2 {[%clk 0:00:12]}  Nxa2 {[%clk 0:00:12]} 37. Nxd8 {[%clk 0:00:12]}  Nc3 {[%clk 0:00:09]} 38. Kf2 {[%clk 0:00:09]}  Ke7 {[%clk 0:00:06]} 39. Ne6 {[%clk 0:00:09]}  Kf6 {[%clk 0:00:05]} 40. g4 {[%clk 0:00:08]}  h5 {[%clk 0:00:06]} 41. h3 {[%clk 0:00:07]}  hxg4 {[%clk 0:00:06]} 42. hxg4 {[%clk 0:00:08]}  Ne4+ {[%clk 0:00:02]} 43. Kf3 {[%clk 0:00:07]}  Nd6 {[%clk 0:00:03]} 44. Kf4 {[%clk 0:00:07]}  Nc4 {[%clk 0:00:03]} 45. e4 {[%clk 0:00:07]}  Ne5 {[%clk 0:00:03]} 46. g5+ {[%clk 0:00:07]}  Ke7 {[%clk 0:00:02]} 47. Kxe5 {[%clk 0:00:08]} 1-0


[Site "https://www.chess.com"]

[Event "Titled Tuesday Blitz April 11 Early 2023"]
[White "Minko, Dmitry"]
[Black "Samunenkov, Ihor"]
[WhiteFideId "24188468"]
[BlackFideId "14187086"]
[WhiteElo "2147"]
[BlackElo "2457"]
[Result "0-1"]
[Round "09"]
[TimeControl "180+2"]
[Date "2023.04.11"]
[WhiteClock "0:00:15"]
[BlackClock "0:00:32"]

1. e4 {[%clk 0:03:00]}  c5 {[%clk 0:02:58]} 2. Nf3 {[%clk 0:03:00]}  Nc6 {[%clk 0:02:58]} 3. d4 {[%clk 0:03:01]}  cxd4 {[%clk 0:02:58]} 4. Nxd4 {[%clk 0:03:02]}  Nf6 {[%clk 0:02:58]} 5. Nc3 {[%clk 0:03:02]}  e5 {[%clk 0:02:58]} 6. Ndb5 {[%clk 0:03:02]}  d6 {[%clk 0:02:58]} 7. a4 {[%clk 0:03:03]}  a6 {[%clk 0:02:54]} 8. Na3 {[%clk 0:03:03]}  Bg4 {[%clk 0:02:54]} 9. f3 {[%clk 0:02:58]}  Be6 {[%clk 0:02:55]} 10. Bc4 {[%clk 0:02:59]}  Nb4 {[%clk 0:02:55]} 11. Bxe6 {[%clk 0:02:54]}  fxe6 {[%clk 0:02:54]} 12. O-O {[%clk 0:02:55]}  Be7 {[%clk 0:02:43]} 13. Nc4 {[%clk 0:02:47]}  Rc8 {[%clk 0:02:42]} 14. Qe2 {[%clk 0:02:40]}  Qc7 {[%clk 0:02:27]} 15. Ne3 {[%clk 0:02:27]}  O-O {[%clk 0:02:26]} 16. Rd1 {[%clk 0:02:09]}  Rfd8 {[%clk 0:02:19]} 17. Kh1 {[%clk 0:02:07]}  Kh8 {[%clk 0:02:07]} 18. a5 {[%clk 0:01:46]}  d5 {[%clk 0:02:04]} 19. exd5 {[%clk 0:01:45]}  exd5 {[%clk 0:02:03]} 20. Na4 {[%clk 0:01:35]}  Nxc2 {[%clk 0:01:48]} 21. Nxc2 {[%clk 0:01:29]}  Qxc2 {[%clk 0:01:47]} 22. Rd2 {[%clk 0:01:30]}  Qf5 {[%clk 0:01:22]} 23. Nb6 {[%clk 0:01:26]}  Rc6 {[%clk 0:01:20]} 24. Qd1 {[%clk 0:01:02]}  d4 {[%clk 0:01:11]} 25. Re2 {[%clk 0:01:02]}  d3 {[%clk 0:01:07]} 26. Re1 {[%clk 0:00:51]}  Rxc1 {[%clk 0:00:51]} 27. Qxc1 {[%clk 0:00:20]}  d2 {[%clk 0:00:51]} 28. Qc7 {[%clk 0:00:21]}  dxe1=Q+ {[%clk 0:00:50]} 29. Rxe1 {[%clk 0:00:22]}  Qe6 {[%clk 0:00:41]} 30. Qxb7 {[%clk 0:00:22]}  Bb4 {[%clk 0:00:40]} 31. Rc1 {[%clk 0:00:15]}  Bxa5 {[%clk 0:00:39]} 32. Nc4 {[%clk 0:00:15]}  Qxc4 {[%clk 0:00:32]} 0-1


[Site "https://www.chess.com"]

[Event "Titled Tuesday Blitz April 11 Early 2023"]
[White "Mirzoev, Azer"]
[Black "Sowul, Bartosz"]
[WhiteFideId "13400304"]
[BlackFideId "1137590"]
[WhiteElo "2525"]
[BlackElo "2188"]
[Result "1-0"]
[Round "09"]
[TimeControl "180+2"]
[Date "2023.04.11"]
[WhiteClock "0:00:21"]
[BlackClock "0:00:06"]

1. c4 {[%clk 0:02:59]}  Nf6 {[%clk 0:02:57]} 2. Nc3 {[%clk 0:02:59]}  d5 {[%clk 0:02:58]} 3. cxd5 {[%clk 0:02:58]}  Nxd5 {[%clk 0:02:59]} 4. Nf3 {[%clk 0:02:57]}  g6 {[%clk 0:02:54]} 5. h4 {[%clk 0:02:56]}  Bg7 {[%clk 0:02:41]} 6. h5 {[%clk 0:02:56]}  Nc6 {[%clk 0:02:39]} 7. Qa4 {[%clk 0:02:52]}  Nb6 {[%clk 0:02:34]} 8. Qh4 {[%clk 0:02:51]}  Bf5 {[%clk 0:02:25]} 9. hxg6 {[%clk 0:02:48]}  fxg6 {[%clk 0:02:21]} 10. d3 {[%clk 0:02:46]}  Qd7 {[%clk 0:02:11]} 11. Bd2 {[%clk 0:02:44]}  O-O-O {[%clk 0:02:10]} 12. O-O-O {[%clk 0:02:40]}  Kb8 {[%clk 0:02:09]} 13. g3 {[%clk 0:02:39]}  e5 {[%clk 0:01:57]} 14. Bh3 {[%clk 0:02:34]}  Nd4 {[%clk 0:01:49]} 15. Bxf5 {[%clk 0:02:25]}  gxf5 {[%clk 0:01:47]} 16. Qh5 {[%clk 0:02:21]}  Na4 {[%clk 0:01:39]} 17. Kb1 {[%clk 0:02:14]}  Nxc3+ {[%clk 0:01:27]} 18. Bxc3 {[%clk 0:02:14]}  Nxe2 {[%clk 0:01:26]} 19. Bxe5 {[%clk 0:02:13]}  Bxe5 {[%clk 0:01:09]} 20. Nxe5 {[%clk 0:02:13]}  Nc3+ {[%clk 0:01:09]} 21. Ka1 {[%clk 0:01:31]}  Qd5 {[%clk 0:00:52]} 22. bxc3 {[%clk 0:01:30]}  Qxe5 {[%clk 0:00:52]} 23. d4 {[%clk 0:01:30]}  Qa5 {[%clk 0:00:49]} 24. Rd3 {[%clk 0:01:24]}  Rhe8 {[%clk 0:00:45]} 25. Rb1 {[%clk 0:01:21]}  Re6 {[%clk 0:00:37]} 26. Qf3 {[%clk 0:01:09]}  b6 {[%clk 0:00:21]} 27. Re3 {[%clk 0:00:50]}  Rde8 {[%clk 0:00:18]} 28. Rbe1 {[%clk 0:00:46]}  Re4 {[%clk 0:00:15]} 29. Rxe4 {[%clk 0:00:41]}  fxe4 {[%clk 0:00:13]} 30. Qe3 {[%clk 0:00:40]}  Qa3 {[%clk 0:00:12]} 31. Rb1 {[%clk 0:00:36]}  Rd8 {[%clk 0:00:09]} 32. Rb3 {[%clk 0:00:32]}  Qe7 {[%clk 0:00:09]} 33. Rb5 {[%clk 0:00:30]}  Qd7 {[%clk 0:00:07]} 34. Re5 {[%clk 0:00:29]}  Qa4 {[%clk 0:00:07]} 35. Rxe4 {[%clk 0:00:21]}  Qd1+ {[%clk 0:00:06]} 36. Kb2 {[%clk 0:00:21]}  Rd5 {[%clk 0:00:06]} 37. Re5 {[%clk 0:00:21]} 1-0


[Site "https://www.chess.com"]

[Event "Titled Tuesday Blitz April 11 Early 2023"]
[White "Chernov, Mikhail"]
[Black "Matinian, Nikita"]
[WhiteFideId "24143170"]
[BlackFideId "24129100"]
[WhiteElo "2113"]
[BlackElo "2422"]
[Result "1-0"]
[Round "09"]
[TimeControl "180+2"]
[Date "2023.04.11"]
[WhiteClock "0:00:07"]
[BlackClock "0:01:20"]

1. d4 {[%clk 0:03:00]}  Nf6 {[%clk 0:02:58]} 2. Nc3 {[%clk 0:03:01]}  d5 {[%clk 0:02:56]} 3. Bf4 {[%clk 0:03:01]}  c6 {[%clk 0:02:56]} 4. e3 {[%clk 0:03:01]}  g6 {[%clk 0:02:56]} 5. h4 {[%clk 0:02:57]}  h5 {[%clk 0:02:56]} 6. Nf3 {[%clk 0:02:53]}  Bg4 {[%clk 0:02:53]} 7. Be2 {[%clk 0:02:54]}  Nbd7 {[%clk 0:02:51]} 8. Ne5 {[%clk 0:02:43]}  Bxe2 {[%clk 0:02:49]} 9. Qxe2 {[%clk 0:02:39]}  Rc8 {[%clk 0:02:45]} 10. O-O-O {[%clk 0:02:36]}  b5 {[%clk 0:02:42]} 11. f3 {[%clk 0:02:08]}  b4 {[%clk 0:02:40]} 12. Na4 {[%clk 0:02:08]}  Qa5 {[%clk 0:02:40]} 13. b3 {[%clk 0:02:06]}  Nb6 {[%clk 0:02:39]} 14. Nc5 {[%clk 0:01:35]}  Qxa2 {[%clk 0:02:36]} 15. Qa6 {[%clk 0:01:31]}  Qxa6 {[%clk 0:02:35]} 16. Nxa6 {[%clk 0:01:32]}  e6 {[%clk 0:02:29]} 17. Nd3 {[%clk 0:01:32]}  Nfd7 {[%clk 0:02:20]} 18. Ndxb4 {[%clk 0:01:17]}  c5 {[%clk 0:01:59]} 19. dxc5 {[%clk 0:01:07]}  Nxc5 {[%clk 0:01:57]} 20. Nxc5 {[%clk 0:00:55]}  Bxc5 {[%clk 0:01:58]} 21. Nd3 {[%clk 0:00:54]}  Be7 {[%clk 0:01:53]} 22. Be5 {[%clk 0:00:53]}  f6 {[%clk 0:01:53]} 23. Bb2 {[%clk 0:00:48]}  e5 {[%clk 0:01:53]} 24. Kb1 {[%clk 0:00:42]}  Kf7 {[%clk 0:01:52]} 25. e4 {[%clk 0:00:35]}  d4 {[%clk 0:01:52]} 26. f4 {[%clk 0:00:33]}  Bd6 {[%clk 0:01:52]} 27. Rhf1 {[%clk 0:00:28]}  Ke6 {[%clk 0:01:52]} 28. Rf3 {[%clk 0:00:25]}  a5 {[%clk 0:01:52]} 29. Rdf1 {[%clk 0:00:25]}  Rhf8 {[%clk 0:01:52]} 30. f5+ {[%clk 0:00:20]}  gxf5 {[%clk 0:01:52]} 31. Rxf5 {[%clk 0:00:21]}  a4 {[%clk 0:01:52]} 32. Rxh5 {[%clk 0:00:15]}  axb3 {[%clk 0:01:45]} 33. cxb3 {[%clk 0:00:16]}  Nd7 {[%clk 0:01:45]} 34. g4 {[%clk 0:00:14]}  Rb8 {[%clk 0:01:45]} 35. Nc1 {[%clk 0:00:11]}  Nc5 {[%clk 0:01:42]} 36. g5 {[%clk 0:00:09]}  Nxe4 {[%clk 0:01:42]} 37. Rg1 {[%clk 0:00:04]}  Rfc8 {[%clk 0:01:38]} 38. g6 {[%clk 0:00:04]}  Nd2+ {[%clk 0:01:38]} 39. Ka1 {[%clk 0:00:02]}  Ra8+ {[%clk 0:01:38]} 40. Na2 {[%clk 0:00:03]}  Nxb3+ {[%clk 0:01:34]} 41. Kb1 {[%clk 0:00:03]}  Nd2+ {[%clk 0:01:34]} 42. Ka1 {[%clk 0:00:03]}  Rxa2+ {[%clk 0:01:35]} 43. Kxa2 {[%clk 0:00:04]}  Ra8+ {[%clk 0:01:35]} 44. Ba3 {[%clk 0:00:05]}  Rxa3+ {[%clk 0:01:35]} 45. Kb2 {[%clk 0:00:05]}  Nc4+ {[%clk 0:01:35]} 46. Kc2 {[%clk 0:00:05]}  d3+ {[%clk 0:01:34]} 47. Kb1 {[%clk 0:00:05]}  Rb3+ {[%clk 0:01:33]} 48. Ka2 {[%clk 0:00:06]}  Rb2+ {[%clk 0:01:33]} 49. Ka1 {[%clk 0:00:06]}  Bc5 {[%clk 0:01:30]} 50. g7 {[%clk 0:00:06]}  Rb3 {[%clk 0:01:21]} 51. g8=Q+ {[%clk 0:00:06]}  Kd6 {[%clk 0:01:20]} 52. Qxc4 {[%clk 0:00:07]} 1-0


[Site "https://www.chess.com"]

[Event "Titled Tuesday Blitz April 11 Early 2023"]
[White "Rios Escobar, Adan"]
[Black "Manukyan, Sargis A."]
[WhiteFideId "3403645"]
[BlackFideId "13303970"]
[WhiteElo "2452"]
[BlackElo "2187"]
[Result "1-0"]
[Round "09"]
[TimeControl "180+2"]
[Date "2023.04.11"]
[WhiteClock "0:01:14"]
[BlackClock "0:00:45"]

1. d4 {[%clk 0:03:00]}  d5 {[%clk 0:02:40]} 2. g3 {[%clk 0:03:01]}  e6 {[%clk 0:02:39]} 3. Nf3 {[%clk 0:03:01]}  Nf6 {[%clk 0:02:39]} 4. Bg2 {[%clk 0:03:01]}  Be7 {[%clk 0:02:39]} 5. c4 {[%clk 0:03:01]}  O-O {[%clk 0:02:40]} 6. O-O {[%clk 0:03:02]}  dxc4 {[%clk 0:02:41]} 7. Qc2 {[%clk 0:03:02]}  a6 {[%clk 0:02:41]} 8. a4 {[%clk 0:03:02]}  c5 {[%clk 0:02:41]} 9. dxc5 {[%clk 0:02:59]}  Bxc5 {[%clk 0:02:41]} 10. Qxc4 {[%clk 0:02:57]}  Qe7 {[%clk 0:02:40]} 11. Nc3 {[%clk 0:02:55]}  Nbd7 {[%clk 0:02:40]} 12. Qh4 {[%clk 0:02:41]}  h6 {[%clk 0:02:39]} 13. h3 {[%clk 0:02:18]}  Rb8 {[%clk 0:02:35]} 14. a5 {[%clk 0:02:16]}  b5 {[%clk 0:02:34]} 15. axb6 {[%clk 0:02:16]}  Bxb6 {[%clk 0:02:32]} 16. g4 {[%clk 0:02:15]}  Bb7 {[%clk 0:02:30]} 17. g5 {[%clk 0:02:13]}  hxg5 {[%clk 0:02:30]} 18. Bxg5 {[%clk 0:02:13]}  a5 {[%clk 0:02:27]} 19. Rad1 {[%clk 0:02:04]}  Qb4 {[%clk 0:02:24]} 20. Nd4 {[%clk 0:01:48]}  Bxg2 {[%clk 0:02:18]} 21. Kxg2 {[%clk 0:01:48]}  Bxd4 {[%clk 0:02:17]} 22. Rxd4 {[%clk 0:01:47]}  Qxb2 {[%clk 0:02:17]} 23. Ne4 {[%clk 0:01:41]}  Nxe4 {[%clk 0:02:16]} 24. Rxe4 {[%clk 0:01:40]}  Qb7 {[%clk 0:02:13]} 25. f3 {[%clk 0:01:39]}  f6 {[%clk 0:02:05]} 26. Bh6 {[%clk 0:01:32]}  gxh6 {[%clk 0:01:40]} 27. Qxh6 {[%clk 0:01:26]}  Ne5 {[%clk 0:01:40]} 28. Rg1 {[%clk 0:01:23]}  Qh7 {[%clk 0:01:08]} 29. Kh2+ {[%clk 0:01:15]}  Ng4+ {[%clk 0:00:45]} 30. Rexg4+ {[%clk 0:01:14]}  Kh8 {[%clk 0:00:44]} 31. Qxh7+ {[%clk 0:01:13]}  Kxh7 {[%clk 0:00:45]} 32. Rh4# {[%clk 0:01:14]} 1-0


[Site "https://www.chess.com"]

[Event "Titled Tuesday Blitz April 11 Early 2023"]
[White "Safin, Robert"]
[Black "Yurasova, Daria"]
[WhiteFideId "34189120"]
[BlackFideId "34146919"]
[WhiteElo "2245"]
[BlackElo "2134"]
[Result "0-1"]
[Round "09"]
[TimeControl "180+2"]
[Date "2023.04.11"]
[WhiteClock "0:00:01"]
[BlackClock "0:00:03"]

1. e4 {[%clk 0:03:00]}  e5 {[%clk 0:02:59]} 2. Nf3 {[%clk 0:03:00]}  Nc6 {[%clk 0:02:59]} 3. Bb5 {[%clk 0:03:00]}  a6 {[%clk 0:02:58]} 4. Bxc6 {[%clk 0:03:00]}  dxc6 {[%clk 0:02:59]} 5. d4 {[%clk 0:02:59]}  exd4 {[%clk 0:02:55]} 6. Qxd4 {[%clk 0:03:00]}  Qxd4 {[%clk 0:02:55]} 7. Nxd4 {[%clk 0:03:01]}  Nf6 {[%clk 0:02:55]} 8. Nc3 {[%clk 0:02:58]}  Bb4 {[%clk 0:02:55]} 9. f3 {[%clk 0:02:57]}  O-O {[%clk 0:02:55]} 10. Be3 {[%clk 0:02:55]}  c5 {[%clk 0:02:47]} 11. Ne2 {[%clk 0:02:54]}  c4 {[%clk 0:02:43]} 12. Kf2 {[%clk 0:02:48]}  b5 {[%clk 0:02:43]} 13. g4 {[%clk 0:02:36]}  Bb7 {[%clk 0:02:42]} 14. a4 {[%clk 0:02:06]}  Bc6 {[%clk 0:02:29]} 15. Nd4 {[%clk 0:01:33]}  Bxc3 {[%clk 0:02:19]} 16. bxc3 {[%clk 0:01:34]}  Bd7 {[%clk 0:02:13]} 17. a5 {[%clk 0:01:31]}  Rfc8 {[%clk 0:01:51]} 18. Rhd1 {[%clk 0:01:24]}  c5 {[%clk 0:01:44]} 19. Nf5 {[%clk 0:01:22]}  Bxf5 {[%clk 0:01:45]} 20. gxf5 {[%clk 0:01:23]}  b4 {[%clk 0:01:35]} 21. Rd6 {[%clk 0:00:45]}  Kf8 {[%clk 0:00:52]} 22. Rb1 {[%clk 0:00:28]}  Ne8 {[%clk 0:00:20]} 23. Rb6 {[%clk 0:00:09]}  bxc3 {[%clk 0:00:21]} 24. Ra1 {[%clk 0:00:07]}  Ke7 {[%clk 0:00:18]} 25. Ra3 {[%clk 0:00:06]}  Nd6 {[%clk 0:00:18]} 26. Rxc3 {[%clk 0:00:05]}  Rab8 {[%clk 0:00:07]} 27. Bxc5 {[%clk 0:00:04]}  Rxb6 {[%clk 0:00:07]} 28. Bxb6 {[%clk 0:00:03]}  Nb5 {[%clk 0:00:07]} 29. Re3 {[%clk 0:00:03]}  c3 {[%clk 0:00:06]} 30. e5 {[%clk 0:00:03]}  Rc4 {[%clk 0:00:05]} 31. Kg3 {[%clk 0:00:02]}  h5 {[%clk 0:00:04]} 32. f4 {[%clk 0:00:02]}  h4+ {[%clk 0:00:04]} 33. Kf3 {[%clk 0:00:01]}  Ra4 {[%clk 0:00:04]} 34. e6 {[%clk 0:00:01]}  fxe6 {[%clk 0:00:04]} 35. Rxe6+ {[%clk 0:00:01]}  Kf7 {[%clk 0:00:05]} 36. Rc6 {[%clk 0:00:01]}  Ra2 {[%clk 0:00:05]} 37. Rc4 {[%clk 0:00:01]}  Rxc2 {[%clk 0:00:05]} 38. Re4 {[%clk 0:00:01]}  Rxh2 {[%clk 0:00:05]} 39. Rc4 {[%clk 0:00:02]}  c2 {[%clk 0:00:04]} 40. Be3 {[%clk 0:00:02]}  Na3 {[%clk 0:00:04]} 41. Rc7+ {[%clk 0:00:01]}  Kg8 {[%clk 0:00:03]} 0-1


[Site "https://www.chess.com"]

[Event "Titled Tuesday Blitz April 11 Early 2023"]
[White "Janaszak, Dawid"]
[Black "Avazkhonov, Alikhon"]
[WhiteFideId "1119206"]
[BlackFideId "14208504"]
[WhiteElo "2220"]
[BlackElo "1739"]
[Result "1-0"]
[Round "09"]
[TimeControl "180+2"]
[Date "2023.04.11"]
[WhiteClock "0:00:14"]
[BlackClock "0:00:02"]

1. e4 {[%clk 0:03:00]}  c5 {[%clk 0:03:00]} 2. Nc3 {[%clk 0:03:00]}  g6 {[%clk 0:02:59]} 3. Bc4 {[%clk 0:02:59]}  Bg7 {[%clk 0:02:59]} 4. h4 {[%clk 0:03:00]}  h5 {[%clk 0:02:51]} 5. Qf3 {[%clk 0:02:59]}  e6 {[%clk 0:02:42]} 6. d4 {[%clk 0:02:51]}  cxd4 {[%clk 0:02:38]} 7. Nb5 {[%clk 0:02:51]}  d6 {[%clk 0:02:14]} 8. Bf4 {[%clk 0:02:51]}  Be5 {[%clk 0:02:13]} 9. Bxe5 {[%clk 0:02:51]}  dxe5 {[%clk 0:02:14]} 10. Qa3 {[%clk 0:02:51]}  Qe7 {[%clk 0:01:59]} 11. Nd6+ {[%clk 0:02:27]}  Kd7 {[%clk 0:01:39]} 12. Nxf7 {[%clk 0:01:43]}  Qxf7 {[%clk 0:01:28]} 13. Nf3 {[%clk 0:01:41]}  Nc6 {[%clk 0:01:13]} 14. O-O-O {[%clk 0:01:28]}  Qe7 {[%clk 0:01:04]} 15. Qa4 {[%clk 0:01:22]}  Kc7 {[%clk 0:00:55]} 16. c3 {[%clk 0:01:15]}  Nf6 {[%clk 0:00:43]} 17. Ng5 {[%clk 0:01:09]}  Rd8 {[%clk 0:00:40]} 18. Kb1 {[%clk 0:00:58]}  Bd7 {[%clk 0:00:34]} 19. f4 {[%clk 0:00:56]}  exf4 {[%clk 0:00:22]} 20. cxd4 {[%clk 0:00:56]}  Qb4 {[%clk 0:00:22]} 21. Qc2 {[%clk 0:00:53]}  Rac8 {[%clk 0:00:17]} 22. a3 {[%clk 0:00:53]}  Qe7 {[%clk 0:00:14]} 23. d5 {[%clk 0:00:53]}  exd5 {[%clk 0:00:12]} 24. exd5 {[%clk 0:00:53]}  Nxd5 {[%clk 0:00:13]} 25. Rxd5 {[%clk 0:00:52]}  Bf5 {[%clk 0:00:09]} 26. Rxf5 {[%clk 0:00:52]}  gxf5 {[%clk 0:00:07]} 27. Ne6+ {[%clk 0:00:52]}  Kb8 {[%clk 0:00:06]} 28. Nxd8 {[%clk 0:00:52]}  Nxd8 {[%clk 0:00:06]} 29. Rc1 {[%clk 0:00:37]}  Qe4 {[%clk 0:00:06]} 30. Ka2 {[%clk 0:00:27]}  Nc6 {[%clk 0:00:05]} 31. Qd1 {[%clk 0:00:24]}  Rd8 {[%clk 0:00:04]} 32. Qf1 {[%clk 0:00:20]}  Rd2 {[%clk 0:00:03]} 33. Bb3 {[%clk 0:00:18]}  a5 {[%clk 0:00:02]} 34. Rc4 {[%clk 0:00:18]}  Qe2 {[%clk 0:00:01]} 35. Qc1 {[%clk 0:00:18]}  Qxg2 {[%clk 0:00:01]} 36. Rxf4 {[%clk 0:00:17]}  Nd4 {[%clk 0:00:01]} 37. Bd5 {[%clk 0:00:15]}  a4 {[%clk 0:00:01]} 38. Bxg2 {[%clk 0:00:14]}  Rxg2 {[%clk 0:00:02]} 39. Rxd4 {[%clk 0:00:14]} 1-0


[Site "https://www.chess.com"]

[Event "Titled Tuesday Blitz April 11 Early 2023"]
[White "Garv Gaur"]
[Black "Dwilewicz, Katarzyna"]
[WhiteFideId "45030839"]
[BlackFideId "1148486"]
[WhiteElo "2068"]
[BlackElo "2065"]
[Result "1-0"]
[Round "09"]
[TimeControl "180+2"]
[Date "2023.04.11"]
[WhiteClock "0:01:00"]
[BlackClock "0:00:01"]

1. Nf3 {[%clk 0:03:00]}  Nf6 {[%clk 0:02:56]} 2. b3 {[%clk 0:03:00]}  g6 {[%clk 0:02:56]} 3. Bb2 {[%clk 0:03:00]}  Bg7 {[%clk 0:02:57]} 4. g3 {[%clk 0:02:59]}  O-O {[%clk 0:02:57]} 5. Bg2 {[%clk 0:02:58]}  d5 {[%clk 0:02:57]} 6. O-O {[%clk 0:02:58]}  Nbd7 {[%clk 0:02:56]} 7. d3 {[%clk 0:02:57]}  Re8 {[%clk 0:02:55]} 8. c4 {[%clk 0:02:52]}  c6 {[%clk 0:02:54]} 9. Nbd2 {[%clk 0:02:50]}  e5 {[%clk 0:02:54]} 10. e3 {[%clk 0:02:47]}  e4 {[%clk 0:02:49]} 11. dxe4 {[%clk 0:02:47]}  dxe4 {[%clk 0:02:49]} 12. Nd4 {[%clk 0:02:44]}  Nc5 {[%clk 0:02:41]} 13. Qc2 {[%clk 0:02:42]}  Nd3 {[%clk 0:02:32]} 14. Bc3 {[%clk 0:02:41]}  c5 {[%clk 0:02:28]} 15. Ne2 {[%clk 0:02:37]}  Bg4 {[%clk 0:02:25]} 16. Nf4 {[%clk 0:02:33]}  Nxf4 {[%clk 0:02:08]} 17. gxf4 {[%clk 0:02:34]}  Be2 {[%clk 0:02:03]} 18. Rfe1 {[%clk 0:02:30]}  Bd3 {[%clk 0:02:03]} 19. Qb2 {[%clk 0:02:31]}  Qe7 {[%clk 0:02:01]} 20. Rad1 {[%clk 0:02:27]}  Rad8 {[%clk 0:02:00]} 21. Nf1 {[%clk 0:02:27]}  h5 {[%clk 0:01:57]} 22. h3 {[%clk 0:02:24]}  Rd6 {[%clk 0:01:53]} 23. f5 {[%clk 0:02:23]}  Qd7 {[%clk 0:01:45]} 24. Be5 {[%clk 0:02:05]}  Rb6 {[%clk 0:01:24]} 25. Ng3 {[%clk 0:02:04]}  Qe7 {[%clk 0:00:59]} 26. Bc3 {[%clk 0:02:02]}  h4 {[%clk 0:00:54]} 27. Ne2 {[%clk 0:02:01]}  gxf5 {[%clk 0:00:51]} 28. Nf4 {[%clk 0:02:00]}  Bxc4 {[%clk 0:00:42]} 29. Rd2 {[%clk 0:01:40]}  Rd8 {[%clk 0:00:25]} 30. Rxd8+ {[%clk 0:01:36]}  Qxd8 {[%clk 0:00:25]} 31. Ba5 {[%clk 0:01:37]}  Rxb3 {[%clk 0:00:12]} 32. axb3 {[%clk 0:01:35]}  Qxa5 {[%clk 0:00:13]} 33. Ra1 {[%clk 0:01:36]}  Qb4 {[%clk 0:00:08]} 34. Qe5 {[%clk 0:01:29]}  Qxb3 {[%clk 0:00:07]} 35. Rxa7 {[%clk 0:01:26]}  Qd1+ {[%clk 0:00:06]} 36. Kh2 {[%clk 0:01:26]}  Bf1 {[%clk 0:00:06]} 37. Ra8+ {[%clk 0:01:25]}  Kh7 {[%clk 0:00:02]} 38. Qxf5+ {[%clk 0:01:26]}  Kh6 {[%clk 0:00:03]} 39. Bxe4 {[%clk 0:01:14]}  Qe1 {[%clk 0:00:01]} 40. Ra2 {[%clk 0:01:00]}  Nxe4 {[%clk 0:00:01]} 41. Qh5# {[%clk 0:01:00]} 1-0


[Site "https://www.chess.com"]

[Event "Titled Tuesday Blitz April 11 Early 2023"]
[White "Leenhouts, Koen"]
[Black "Dishman, Stephen"]
[WhiteFideId "1008439"]
[BlackFideId "403024"]
[WhiteElo "2409"]
[BlackElo "2204"]
[Result "1-0"]
[Round "09"]
[TimeControl "180+2"]
[Date "2023.04.11"]
[WhiteClock "0:00:51"]
[BlackClock "0:00:01"]

1. d4 {[%clk 0:02:30]}  d5 {[%clk 0:02:59]} 2. c4 {[%clk 0:02:30]}  e6 {[%clk 0:02:59]} 3. Nf3 {[%clk 0:02:28]}  Nf6 {[%clk 0:02:58]} 4. g3 {[%clk 0:02:28]}  dxc4 {[%clk 0:02:57]} 5. Bg2 {[%clk 0:02:28]}  a6 {[%clk 0:02:57]} 6. O-O {[%clk 0:02:29]}  Nc6 {[%clk 0:02:56]} 7. e3 {[%clk 0:02:26]}  Rb8 {[%clk 0:02:55]} 8. Nfd2 {[%clk 0:02:26]}  e5 {[%clk 0:02:55]} 9. Bxc6+ {[%clk 0:02:25]}  bxc6 {[%clk 0:02:55]} 10. dxe5 {[%clk 0:02:26]}  Ng4 {[%clk 0:02:54]} 11. Nxc4 {[%clk 0:02:26]}  Be6 {[%clk 0:02:53]} 12. Nbd2 {[%clk 0:02:25]}  Bb4 {[%clk 0:02:52]} 13. b3 {[%clk 0:02:23]}  h5 {[%clk 0:02:50]} 14. Bb2 {[%clk 0:02:19]}  h4 {[%clk 0:02:43]} 15. Nf3 {[%clk 0:02:03]}  hxg3 {[%clk 0:02:34]} 16. Qxd8+ {[%clk 0:01:59]}  Rxd8 {[%clk 0:02:32]} 17. hxg3 {[%clk 0:01:57]}  Bd5 {[%clk 0:02:14]} 18. Nh4 {[%clk 0:01:57]}  g5 {[%clk 0:02:03]} 19. e6 {[%clk 0:01:54]}  Rh5 {[%clk 0:01:54]} 20. exf7+ {[%clk 0:01:40]}  Kxf7 {[%clk 0:01:53]} 21. f3 {[%clk 0:01:40]}  Nf6 {[%clk 0:01:00]} 22. Ne5+ {[%clk 0:01:39]}  Ke6 {[%clk 0:00:51]} 23. Ng2 {[%clk 0:01:38]}  Bc5 {[%clk 0:00:31]} 24. Nd3 {[%clk 0:01:31]}  Bb6 {[%clk 0:00:30]} 25. Kf2 {[%clk 0:01:23]}  Rf8 {[%clk 0:00:25]} 26. Ngf4+ {[%clk 0:01:09]}  gxf4 {[%clk 0:00:23]} 27. Nxf4+ {[%clk 0:01:10]}  Kf7 {[%clk 0:00:20]} 28. Bxf6 {[%clk 0:01:09]}  Rh2+ {[%clk 0:00:17]} 29. Kg1 {[%clk 0:01:09]}  Rc2 {[%clk 0:00:15]} 30. Bd4 {[%clk 0:01:04]}  Bxd4 {[%clk 0:00:14]} 31. exd4 {[%clk 0:01:04]}  Rh8 {[%clk 0:00:14]} 32. Nxd5 {[%clk 0:01:02]}  cxd5 {[%clk 0:00:14]} 33. Rf2 {[%clk 0:01:03]}  Rxf2 {[%clk 0:00:12]} 34. Kxf2 {[%clk 0:01:02]}  Rh2+ {[%clk 0:00:11]} 35. Ke3 {[%clk 0:01:02]}  Ke6 {[%clk 0:00:10]} 36. g4 {[%clk 0:00:59]}  Kd6 {[%clk 0:00:07]} 37. g5 {[%clk 0:00:55]}  Rg2 {[%clk 0:00:06]} 38. Kf4 {[%clk 0:00:54]}  a5 {[%clk 0:00:02]} 39. Kf5 {[%clk 0:00:53]}  Ke7 {[%clk 0:00:01]} 40. g6 {[%clk 0:00:51]} 1-0


[Site "https://www.chess.com"]